bitfinex/quotes_SOLUSD_20240628
["timestamp","ask_amount","ask_price","bid_price","bid_amount"]
[1719598071589,0.843794,141.79,141.72,7.056]
[1719598071747,0.843794,141.79,141.73,7.0555]
[1719598072150,0.843794,141.79,141.72,24.6958]
[1719598072371,0.843794,141.79,141.72,17.6399]
[1719598072676,0.843794,141.79,141.7,42.72147715]
[1719598073372,0.843794,141.79,141.71,7.0566]
[1719598074880,0.843794,141.79,141.72,7.0561]
[1719598075251,0.843794,141.79,141.71,24.698]
[1719598075857,0.843794,141.79,141.71,17.6415]
[1719598076061,0.843794,141.79,141.72,7.0561]
[1719598076876,0.843794,141.79,141.71,24.698]
[1719598079180,0.843794,141.79,141.7,5.66457715]
[1719598079360,0.843794,141.79,141.68,44.1525]
[1719598079562,0.843794,141.79,141.69,50.0]
[1719598079883,0.843794,141.79,141.7,7.0571]
[1719598080991,0.843794,141.79,141.69,50.0]
[1719598081871,0.843794,141.79,141.7,1.41092637]
[1719598082077,0.843794,141.79,141.69,67.6433]
[1719598082460,0.843794,141.79,141.71,7.0566]
[1719598082854,0.843794,141.79,141.69,74.7007]
[1719598083073,33.72,141.77,141.69,30.0]
[1719598083377,20.0,141.76,141.67,7.0585]
[1719598083684,20.0,141.76,141.66,17.6475]
[1719598083859,20.0,141.76,141.64,6.6487]
[1719598084062,20.0,141.77,141.69,7.0572]
[1719598084387,33.72,141.76,141.69,7.0572]
[1719598084574,20.0,141.75,141.69,7.0572]
[1719598085184,20.0,141.75,141.64,6.6487]
[1719598085367,20.0,141.75,141.67,7.0583]
[1719598085567,20.0,141.75,141.65,20.0]
[1719598085568,20.0,141.75,141.66,24.7061]
[1719598085760,20.0,141.75,141.67,7.0586]
[1719598085963,20.0,141.75,141.68,7.0581]
[1719598086775,20.0,141.75,141.69,7.0575]
[1719598086979,33.72,141.76,141.66,35.2937]
[1719598087177,33.72,141.76,141.7,24.6996]
[1719598087488,22.9385,141.78,141.7,17.6427]
[1719598087653,22.9385,141.78,141.71,7.0564]
[1719598088354,22.9385,141.78,141.7,24.6997]
[1719598088874,20.0,141.77,141.7,24.6997]
[1719598090682,20.0,141.77,141.69,7.0575]
[1719598092487,20.0,141.77,141.7,7.0571]
[1719598092987,20.0,141.77,141.69,17.6439]
[1719598093161,53.72,141.77,141.66,17.6476]
[1719598093486,53.72,141.77,141.68,7.0578]
[1719598094084,53.72,141.77,141.67,7.0586]
[1719598094272,20.0,141.77,141.68,24.7033]
[1719598094468,53.72,141.77,141.68,17.6453]
[1719598094682,53.72,141.77,141.7,7.0571]
[1719598094863,33.72,141.77,141.67,100.0]
[1719598095071,22.9385,141.78,141.7,17.6426]
[1719598095585,22.9385,141.78,141.69,7.0575]
[1719598095888,22.9385,141.78,141.68,7.0581]
[1719598096382,20.0,141.77,141.68,7.0581]
[1719598097484,20.0,141.77,141.69,7.0576]
[1719598098365,20.0,141.77,141.68,7.0581]
[1719598099184,20.0,141.77,141.69,7.0572]
[1719598099692,20.0,141.77,141.7,7.057]
[1719598100393,20.0,141.77,141.66,35.294]
[1719598100598,20.0,141.77,141.67,20.0]
[1719598100890,20.0,141.77,141.68,17.6442]
[1719598101070,20.0,141.77,141.67,20.0]
[1719598101397,53.72,141.77,141.67,7.0586]
[1719598102178,15.4766,141.76,141.66,7.0589]
[1719598102389,20.0,141.75,141.66,7.0589]
[1719598102696,39.9468,141.74,141.65,17.6482]
[1719598102991,20.0,141.73,141.67,7.0585]
[1719598103376,20.0,141.73,141.65,17.6482]
[1719598103701,15.4397,141.69,141.55,122.3991]
[1719598103873,15.4397,141.69,141.59,17.6482]
[1719598103874,33.72,141.68,141.59,17.6482]
[1719598104073,22.0108,141.67,141.56,17.6599]
[1719598104279,20.0,141.66,141.58,7.0629]
[1719598104500,20.0,141.66,141.56,17.6599]
[1719598105083,20.0,141.66,141.56,24.724]
[1719598105285,20.0,141.66,141.57,7.0632]
[1719598105486,20.0,141.66,141.56,17.6599]
[1719598105802,20.0,141.66,141.57,7.0636]
[1719598105978,21.5595,141.65,141.54,5.67642239]
[1719598106177,21.5595,141.65,141.51,360.0]
[1719598106178,20.0,141.64,141.51,360.0]
[1719598106999,20.0,141.64,141.51,106.5517]
[1719598107382,20.0,141.64,141.56,7.0637]
[1719598108369,20.0,141.64,141.57,7.0635]
[1719598108576,20.0,141.64,141.58,7.0627]
[1719598108790,21.5595,141.65,141.58,7.0627]
[1719598109600,21.5595,141.65,141.59,17.6561]
[1719598109801,21.5595,141.65,141.6,7.0617]
[1719598110182,21.5595,141.65,141.56,17.6597]
[1719598110394,21.5595,141.65,141.57,20.0]
[1719598110976,21.5595,141.65,141.57,27.0635]
[1719598111390,21.5595,141.65,141.58,7.063]
[1719598112006,21.5595,141.65,141.58,17.6572]
[1719598112181,21.5595,141.65,141.6,7.0617]
[1719598112786,22.3702,141.69,141.6,17.6547]
[1719598112982,22.3702,141.69,141.63,7.0602]
[1719598113195,22.3702,141.69,141.61,20.0]
[1719598113196,22.3702,141.69,141.62,17.6523]
[1719598113706,22.3702,141.69,141.63,7.0605]
[1719598114882,22.3702,141.69,141.64,7.06]
[1719598115090,22.3702,141.69,141.62,17.6523]
[1719598115298,22.3702,141.69,141.62,24.7133]
[1719598115807,22.3702,141.69,141.62,17.6523]
[1719598116010,22.3702,141.69,141.63,7.0605]
[1719598117315,22.3702,141.69,141.62,24.7133]
[1719598117614,22.3702,141.69,141.64,17.65]
[1719598118410,15.9809,141.69,141.65,7.0592]
[1719598118709,22.5352,141.73,141.66,17.6473]
[1719598118892,22.5352,141.73,141.69,7.0575]
[1719598119101,22.5352,141.73,141.66,17.6473]
[1719598119285,22.5352,141.73,141.66,24.7064]
[1719598119487,22.5352,141.73,141.66,17.6473]
[1719598119787,22.5352,141.73,141.67,7.0583]
[1719598121001,22.5352,141.73,141.63,17.6514]
[1719598121188,22.5352,141.73,141.64,27.0598]
[1719598121614,22.5352,141.73,141.65,17.6486]
[1719598122094,22.5352,141.73,141.66,7.0587]
[1719598122293,22.5352,141.73,141.67,7.0582]
[1719598122491,22.5352,141.73,141.66,7.0589]
[1719598122786,22.5352,141.73,141.64,20.0]
[1719598122981,22.5352,141.73,141.64,27.0601]
[1719598123188,22.5352,141.73,141.62,17.6523]
[1719598123416,20.0,141.72,141.62,24.713]
[1719598123929,20.0,141.72,141.63,7.0604]
[1719598126197,53.72,141.72,141.61,5.48133839]
[1719598126491,15.6233,141.71,141.59,17.6555]
[1719598126692,74.99,141.72,141.59,17.6555]
[1719598126693,49.3433,141.69,141.59,17.6555]
[1719598126891,20.0,141.68,141.59,17.6555]
[1719598127113,20.0,141.68,141.61,17.6537]
[1719598127290,49.3433,141.69,141.61,17.6537]
[1719598127787,49.3433,141.69,141.63,7.0605]
[1719598127990,15.6233,141.69,141.59,35.3112]
[1719598128290,15.6233,141.69,141.63,17.6514]
[1719598128800,15.6233,141.69,141.64,1.30103735]
[1719598129000,15.6233,141.69,141.65,1.3009455]
[1719598129500,15.6233,141.69,141.63,17.6514]
[1719598129695,15.6233,141.69,141.6,17.6547]
[1719598129898,15.6233,141.69,141.61,20.0]
[1719598130106,49.3433,141.69,141.6,17.6547]
[1719598130306,49.3433,141.69,141.6,24.7168]
[1719598131197,49.3433,141.69,141.62,7.0611]
[1719598131609,49.3433,141.69,141.63,1.26234271]
[1719598132210,15.6233,141.69,141.63,8.32284271]
[1719598132607,15.6233,141.69,141.64,17.6498]
[1719598132801,15.6233,141.69,141.65,1.26216447]
[1719598133114,15.6233,141.69,141.67,7.0585]
[1719598133322,15.6233,141.69,141.67,8.32049089]
[1719598133716,15.6233,141.69,141.66,17.6471]
[1719598134022,15.6385,141.72,141.67,7.0585]
[1719598134227,15.6385,141.72,141.66,24.706]
[1719598134821,15.6385,141.72,141.66,17.6471]
[1719598135208,15.6385,141.72,141.65,7.0595]
[1719598135417,15.6385,141.72,141.64,7.0599]
[1719598135630,15.6385,141.72,141.64,7.0601]
[1719598136621,15.6385,141.72,141.65,7.0595]
[1719598138322,15.6385,141.72,141.66,7.0591]
[1719598138524,15.6385,141.72,141.64,100.0]
[1719598138821,15.6385,141.72,141.65,20.0]
[1719598139008,15.6385,141.72,141.69,17.6439]
[1719598139205,15.6385,141.72,141.65,20.0]
[1719598139206,15.6385,141.72,141.68,7.0577]
[1719598143135,15.6385,141.72,141.67,7.0584]
[1719598143514,15.6385,141.72,141.65,20.0]
[1719598143721,15.6385,141.72,141.64,20.0]
[1719598143921,15.6385,141.72,141.64,27.0599]
[1719598144132,15.6385,141.72,141.65,17.6488]
[1719598144335,15.6385,141.72,141.66,7.059]
[1719598144834,15.6385,141.72,141.67,1.41126557]
[1719598145138,15.6385,141.72,141.68,1.41125185]
[1719598146142,15.6385,141.72,141.69,1.41113774]
[1719598146931,21.4664,141.78,141.69,1.41113774]
[1719598147308,21.4664,141.78,141.69,8.46863774]
[1719598147715,21.4664,141.78,141.7,17.6425]
[1719598147923,21.4664,141.78,141.71,8.46684825]
[1719598148113,21.4664,141.78,141.72,17.6402]
[1719598148311,21.4664,141.78,141.73,8.46604918]
[1719598148536,15.0026,141.78,141.76,7.0541]
[1719598148841,0.843794,141.79,141.77,1.41005122]
[1719598149919,54.99,141.89,141.77,1.41005122]
[1719598149920,6.4638,141.84,141.77,20.0]
[1719598150219,6.4638,141.84,141.79,7.0523]
[1719598150421,6.4638,141.84,141.78,17.6324]
[1719598150618,6.4638,141.84,141.78,24.6854]
[1719598151048,6.4638,141.84,141.79,7.0526]
[1719598151249,6.4638,141.84,141.8,17.6298]
[1719598151554,6.4638,141.84,141.77,37.6334]
[1719598151714,6.4638,141.84,141.78,7.053]
[1719598151914,6.4638,141.84,141.79,7.0526]
[1719598152624,6.4638,141.84,141.78,7.0531]
[1719598153020,6.4638,141.84,141.79,7.0525]
[1719598153414,15.0026,141.86,141.79,17.6309]
[1719598153620,15.0026,141.86,141.83,7.0506]
[1719598154546,15.0026,141.86,141.81,17.6284]
[1719598154547,15.0026,141.86,141.82,7.051]
[1719598155142,6.0081,141.89,141.83,17.626]
[1719598156015,6.0081,141.89,141.83,24.6762]
[1719598157941,6.0081,141.89,141.84,7.0501]
[1719598158341,6.0081,141.89,141.8,17.63]
[1719598158547,6.0081,141.89,141.79,107.092]
[1719598158548,6.0081,141.89,141.82,35.2551]
[1719598158719,6.0081,141.89,141.81,20.0]
[1719598159339,6.0081,141.89,141.82,7.0511]
[1719598160638,6.0081,141.89,141.82,17.6268]
[1719598160939,6.0081,141.89,141.85,7.0493]
[1719598161143,16.5736,141.91,141.83,100.0]
[1719598161343,16.5736,141.91,141.86,24.6716]
[1719598161933,16.5736,141.91,141.86,17.6226]
[1719598162317,16.5736,141.91,141.88,7.0478]
[1719598162318,15.5605321,141.91,141.88,7.0478]
[1719598162517,15.5605321,141.91,141.89,7.0476]
[1719598163021,0.843794,141.93,141.89,7.0476]
[1719598163220,0.843794,141.93,141.9,7.0472]
[1719598163425,0.843794,141.93,141.89,7.0475]
[1719598164458,0.843794,141.93,141.88,17.6197]
[1719598164619,0.843794,141.93,141.87,7.0485]
[1719598165030,0.843794,141.93,141.88,7.0481]
[1719598165342,15.4303,141.92,141.87,24.67]
[1719598166041,15.4303,141.92,141.84,24.7167]
[1719598166347,6.113,141.91,141.83,7.0503]
[1719598166530,6.113,141.91,141.84,7.0501]
[1719598166848,6.113,141.91,141.83,7.0505]
[1719598169149,6.113,141.91,141.84,7.0501]
[1719598170518,6.113,141.91,141.83,105.48399471]
[1719598170723,15.4303,141.92,141.9,7.0472]
[1719598170920,15.4303,141.92,141.89,7.0476]
[1719598171439,15.4303,141.92,141.9,7.047]
[1719598171750,0.843794,141.93,141.9,7.047]
[1719598171921,0.843794,141.93,141.91,1.40772167]
[1719598173749,0.843794,141.93,141.88,7.048]
[1719598173750,0.843794,141.93,141.89,1.40772167]
[1719598173956,0.843794,141.93,141.87,24.6699]
[1719598174526,0.843794,141.93,141.88,7.0481]
[1719598175128,0.843794,141.93,141.89,7.0473]
[1719598175345,0.843794,141.93,141.9,7.0471]
[1719598176330,0.843794,141.93,141.87,17.6213]
[1719598176532,0.843794,141.93,141.88,7.0478]
[1719598177160,0.843794,141.93,141.89,7.0476]
[1719598177543,0.843794,141.93,141.88,7.048]
[1719598177760,0.843794,141.93,141.84,52.8737]
[1719598178059,0.843794,141.93,141.86,17.6225]
[1719598178633,0.843794,141.93,141.89,7.0477]
[1719598179732,0.843794,141.93,141.88,24.6683]
[1719598180960,0.843794,141.93,141.89,7.0476]
[1719598181558,0.843794,141.93,141.85,137.6231]
[1719598181733,0.843794,141.93,141.87,7.0485]
[1719598183059,0.843794,141.93,141.85,37.6231]
[1719598183363,0.843794,141.93,141.86,7.0491]
[1719598183856,0.843794,141.93,141.87,7.0486]
[1719598185963,0.843794,141.93,141.85,37.6231]
[1719598186138,0.843794,141.93,141.86,7.049]
[1719598188260,0.843794,141.93,141.87,7.0485]
[1719598188856,0.843794,141.93,141.88,7.0478]
[1719598189061,0.843794,141.93,141.87,24.6698]
[1719598189566,0.843794,141.93,141.87,17.6213]
[1719598189768,0.843794,141.93,141.88,7.0481]
[1719598190852,0.843794,141.93,141.89,17.6185]
[1719598191052,0.843794,141.93,141.92,7.0462]
[1719598191248,0.843794,141.93,141.92,24.6617]
[1719598192539,0.843794,141.93,141.92,17.6155]
[1719598192759,0.843794,141.93,141.92,18.9226269]
[1719598194567,0.843794,141.93,141.92,1.3071269]
[1719598194736,15.5349,141.98,141.93,7.0457]
[1719598194946,15.5087,142.01,141.91,17.6159]
[1719598195454,15.5087,142.01,141.93,7.0456]
[1719598195748,15.5087,142.01,141.91,24.6625]
[1719598196166,15.5087,142.01,141.88,91.4814]
[1719598196167,15.5087,142.01,141.89,100.0]
[1719598196340,15.5087,142.01,141.91,7.0462]
[1719598197763,15.5087,142.01,141.92,7.0462]
[1719598197943,15.5087,142.01,141.91,7.0465]
[1719598198139,20.0,142.0,141.91,7.0465]
[1719598198745,20.0,142.0,141.9,17.6178]
[1719598198957,20.0,142.0,141.9,24.6646]
[1719598199158,20.0,142.0,141.91,7.0464]
[1719598199562,20.0,142.0,141.93,7.0453]
[1719598199967,20.0,142.0,141.92,17.6152]
[1719598200869,20.0,142.0,141.89,24.6659]
[1719598200870,22.9566,141.99,141.89,24.6659]
[1719598201040,20.0,141.98,141.9,7.0471]
[1719598201464,20.0,141.98,141.91,17.6164]
[1719598201666,20.0,141.98,141.92,7.0457]
[1719598201843,20.0,141.98,141.93,7.0453]
[1719598202246,20.0,141.98,141.91,24.6626]
[1719598202666,20.0,141.98,141.91,17.6164]
[1719598203237,20.0,141.98,141.9,7.0472]
[1719598203966,20.0,141.98,141.91,7.0466]
[1719598204174,20.0,141.98,141.92,7.0462]
[1719598204472,20.0,141.98,141.92,7.0457]
[1719598205463,20.0,141.98,141.91,7.0465]
[1719598206974,20.0,141.98,141.92,7.0461]
[1719598207482,20.0,141.98,141.91,7.0465]
[1719598207659,20.0,141.98,141.9,17.6178]
[1719598207975,20.0,141.98,141.9,24.6648]
[1719598208156,20.0,141.98,141.91,7.0463]
[1719598209046,20.0,141.98,141.92,7.0461]
[1719598210491,22.9566,141.99,141.93,7.0454]
[1719598210657,22.9566,141.99,141.92,24.6605]
[1719598211178,22.9566,141.99,141.92,17.6146]
[1719598211554,22.9566,141.99,141.89,17.6181]
[1719598211752,22.9566,141.99,141.91,7.0466]
[1719598213856,22.9566,141.99,141.89,24.6657]
[1719598214688,22.4566,141.99,141.89,24.6657]
[1719598215276,16.5171,141.97,141.88,12.63855561]
[1719598215480,20.0,141.96,141.86,24.671]
[1719598215662,20.0,141.96,141.89,7.0475]
[1719598215857,20.0,141.96,141.9,7.0472]
[1719598216081,20.0,141.96,141.89,7.0475]
[1719598216471,20.0,141.96,141.9,7.0472]
[1719598218083,16.5171,141.97,141.9,17.6171]
[1719598218263,16.5171,141.97,141.92,17.6151]
[1719598218664,16.5171,141.97,141.94,16.71]
[1719598219656,16.5171,141.97,141.93,16.71]
[1719598219856,33.2271,141.97,141.92,16.71]
[1719598220054,33.2271,141.97,141.91,7.0467]
[1719598220367,16.5171,141.97,141.9,7.047]
[1719598220562,33.2271,141.97,141.92,16.71]
[1719598220791,33.2271,141.97,141.91,16.71]
[1719598221159,33.2271,141.97,141.92,1.40888384]
[1719598221362,33.2271,141.97,141.93,1.40879944]
[1719598221761,33.2271,141.97,141.91,16.71]
[1719598222369,16.71,141.96,141.9,16.71]
[1719598222569,16.71,141.96,141.89,17.6182]
[1719598222757,16.71,141.95,141.9,16.71]
[1719598222981,16.71,141.95,141.89,34.3282]
[1719598223324,16.71,141.95,141.91,30.0]
[1719598223963,16.71,141.95,141.89,41.3758]
[1719598224368,16.5171,141.97,141.89,41.3758]
[1719598224572,16.71,141.95,141.9,7.0471]
[1719598224876,16.5171,141.97,141.9,7.0471]
[1719598224877,16.71,141.96,141.9,23.7571]
[1719598225873,16.71,141.95,141.89,17.6182]
[1719598226078,16.71,141.94,141.88,7.0481]
[1719598226386,15.0869,141.95,141.84,7.0499]
[1719598226592,16.71,141.89,141.85,30.0]
[1719598226766,16.71,141.9,141.85,37.0493]
[1719598226963,16.71,141.91,141.85,53.7593]
[1719598227169,15.0869,141.92,141.86,16.71]
[1719598227375,15.0869,141.92,141.88,7.0481]
[1719598227376,31.7969,141.92,141.88,7.0481]
[1719598227593,15.0869,141.92,141.88,7.0481]
[1719598228191,15.0869,141.92,141.87,41.38]
[1719598229595,15.0869,141.92,141.89,16.71]
[1719598229793,15.0869,141.92,141.9,16.71]
[1719598230077,39.6336,141.96,141.9,23.7571]
[1719598230281,39.6336,141.96,141.9,16.71]
[1719598230993,16.2744,141.96,141.92,23.7557]
[1719598231173,16.2744,141.96,141.93,0.7033919]
[1719598231483,16.2744,141.96,141.89,7.0473]
[1719598231683,16.2744,141.96,141.9,16.71]
[1719598231880,16.2744,141.96,141.92,16.71]
[1719598232278,16.2744,141.96,141.91,16.71]
[1719598232498,32.9844,141.96,141.9,16.71]
[1719598232705,16.71,141.95,141.89,16.71]
[1719598232878,16.71,141.95,141.89,23.7576]
[1719598233307,32.9844,141.96,141.9,23.7571]
[1719598234194,32.9844,141.96,141.91,16.71]
[1719598234398,16.2744,141.96,141.89,151.9476]
[1719598234605,16.2744,141.96,141.94,16.71]
[1719598235004,16.2744,141.96,141.93,30.8475]
[1719598235183,21.4727,142.0,141.95,23.7542]
[1719598235383,21.4727,142.0,141.96,16.71]
[1719598236904,21.4727,142.0,141.95,23.802]
[1719598238287,21.4727,142.0,141.95,30.8465]
[1719598238901,16.71,141.96,141.91,16.71]
[1719598239103,16.71,141.95,141.92,30.0]
[1719598239893,16.71,141.95,141.9,23.7571]
[1719598240092,16.71,141.96,141.91,7.0466]
[1719598240295,21.4727,142.0,141.92,7.0461]
[1719598240500,16.71,141.97,141.92,7.0461]
[1719598241013,16.71,141.98,141.93,7.0456]
[1719598241714,21.4727,142.0,141.94,7.0451]
[1719598241893,16.71,141.99,141.94,16.71]
[1719598242095,16.71,141.99,141.93,34.3241]
[1719598242301,16.71,141.98,141.93,16.71]
[1719598242503,16.71,141.98,141.92,23.756]
[1719598243816,16.71,141.97,141.9,17.617]
[1719598244128,16.71,141.96,141.91,30.0]
[1719598244291,21.4727,142.0,141.91,30.0]
[1719598244635,16.71,141.98,141.92,34.3247]
[1719598244794,16.71,141.98,141.93,7.0454]
[1719598244989,16.71,141.98,141.94,7.0452]
[1719598245423,36.71,141.99,141.94,23.7552]
[1719598245601,36.71,141.99,141.94,16.71]
[1719598246422,20.0,141.99,141.94,23.7552]
[1719598246718,16.71,141.99,141.94,16.71]
[1719598246906,38.1827,142.0,141.94,16.71]
[1719598247722,16.71,141.99,141.94,16.71]
[1719598248302,20.0,141.98,141.89,17.6188]
[1719598248496,16.71,141.95,141.9,46.71]
[1719598248815,16.71,141.96,141.9,46.71]
[1719598249012,16.71,141.97,141.91,34.3266]
[1719598250126,16.71,141.97,141.91,41.3731]
[1719598250618,20.0,141.98,141.89,7.0475]
[1719598250926,21.4727,142.0,141.89,7.0475]
[1719598250927,20.0,141.99,141.89,7.0475]
[1719598251922,20.0,141.99,141.9,7.0471]
[1719598252594,20.0,141.99,141.89,7.0475]
[1719598253014,20.0,141.99,141.9,17.6174]
[1719598253723,20.0,141.99,141.91,7.0465]
[1719598254095,20.0,141.99,141.9,24.6645]
[1719598254516,20.0,141.99,141.89,7.0475]
[1719598254723,70.1545,141.98,141.87,17.6207]
[1719598254894,70.1545,141.98,141.86,7.0491]
[1719598255104,6.0796,141.96,141.87,30.0]
[1719598255307,20.0,141.95,141.87,30.0]
[1719598255830,20.0,141.95,141.87,7.0485]
[1719598257421,20.0,141.95,141.86,17.6227]
[1719598257629,20.0,141.95,141.89,7.0476]
[1719598257929,20.0,141.95,141.88,24.6682]
[1719598258524,20.0,141.95,141.88,17.6202]
[1719598258904,20.0,141.95,141.88,24.6684]
[1719598259105,20.0,141.95,141.85,45.20881308]
[1719598259304,20.0,141.95,141.86,7.0488]
[1719598260123,20.0,141.95,141.87,7.0486]
[1719598260706,15.9599,141.94,141.85,24.6724]
[1719598260912,20.0,141.93,141.85,24.6724]
[1719598261316,20.0,141.93,141.87,7.0486]
[1719598262327,15.1727,141.98,141.93,7.0456]
[1719598262517,15.1727,141.98,141.92,7.046]
[1719598262905,15.1727,141.98,141.91,24.6629]
[1719598264814,15.1727,141.98,141.88,32.7447]
[1719598265013,15.1727,141.98,141.89,37.0475]
[1719598265417,20.0,141.97,141.89,30.0]
[1719598265608,20.0,141.97,141.88,24.6675]
[1719598266016,20.0,141.97,141.88,17.6194]
[1719598266414,20.0,141.97,141.87,7.0486]
[1719598267346,15.7136,141.95,141.86,7.049]
[1719598267507,20.0,141.94,141.86,7.049]
[1719598267937,20.0,141.94,141.84,12.60532868]
[1719598268113,20.0,141.94,141.84,7.05]
[1719598268437,20.0,141.94,141.85,30.0]
[1719598268629,20.0,141.94,141.84,7.05]
[1719598269037,20.0,141.94,141.85,7.0496]
[1719598269619,20.0,141.94,141.83,7.0502]
[1719598269620,22.0497,141.92,141.83,7.0502]
[1719598269934,22.0497,141.92,141.81,17.6284]
[1719598269935,41.21,141.91,141.81,17.6284]
[1719598270138,20.0,141.91,141.81,17.6284]
[1719598270323,20.0,141.91,141.78,17.632]
[1719598270513,33.44,141.9,141.79,30.0]
[1719598270831,20.0,141.89,141.79,37.0526]
[1719598271022,37.6904,141.88,141.78,17.632]
[1719598271236,59.7058,141.87,141.78,17.632]
[1719598271534,59.7058,141.87,141.78,24.685]
[1719598271712,59.7058,141.87,141.81,7.0515]
[1719598271918,26.2658,141.87,141.81,7.0515]
[1719598272732,26.2658,141.87,141.8,24.6821]
[1719598275039,26.2658,141.87,141.8,17.6301]
[1719598275750,26.2658,141.87,141.78,7.053]
[1719598275924,59.7058,141.87,141.77,17.6336]
[1719598277643,37.7221,141.86,141.74,24.692]
[1719598277829,33.44,141.84,141.74,24.692]
[1719598278027,20.0,141.83,141.75,7.0546]
[1719598278233,20.0,141.83,141.76,17.6348]
[1719598278553,16.5121,141.86,141.79,7.0522]
[1719598279214,16.5121,141.86,141.78,24.6852]
[1719598280016,16.5121,141.86,141.78,17.6322]
[1719598280216,16.5121,141.86,141.79,7.0525]
[1719598280415,16.5121,141.86,141.78,24.6852]
[1719598281148,16.5121,141.86,141.75,17.6359]
[1719598281447,20.0,141.85,141.75,17.6359]
[1719598281854,20.0,141.85,141.75,24.6905]
[1719598282760,20.0,141.85,141.76,7.0541]
[1719598283854,20.0,141.85,141.75,24.6904]
[1719598284039,20.0,141.85,141.75,17.6359]
[1719598284360,20.0,141.85,141.74,12.54615645]
[1719598284361,74.65,141.85,141.74,12.54615645]
[1719598284660,74.65,141.85,141.74,12.54635645]
[1719598284830,74.65,141.85,141.74,17.6377]
[1719598285158,74.65,141.85,141.74,24.6924]
[1719598285536,74.65,141.85,141.74,17.6377]
[1719598285756,53.44,141.85,141.74,24.6927]
[1719598286255,21.3574,141.84,141.74,24.6927]
[1719598286436,20.0,141.83,141.74,24.6927]
[1719598287131,20.0,141.83,141.73,7.0554]
[1719598287334,48.6234,141.82,141.71,17.6408]
[1719598287536,20.0,141.81,141.72,30.0]
[1719598287746,20.0,141.81,141.72,37.056]
[1719598288252,20.0,141.81,141.73,7.0556]
[1719598288641,20.0,141.81,141.74,7.055]
[1719598288843,20.0,141.81,141.74,7.0551]
[1719598292069,20.0,141.81,141.75,24.6909]
[1719598292241,20.0,141.81,141.71,140.85218454]
[1719598292242,15.1834,141.82,141.77,17.6337]
[1719598292561,25.0,141.95,141.73,100.0]
[1719598292562,15.8383,141.86,141.79,17.6312]
[1719598292760,15.8383,141.86,141.8,7.0518]
[1719598293266,15.8383,141.86,141.81,7.0516]
[1719598293444,15.8383,141.86,141.81,7.0515]
[1719598293770,15.8383,141.86,141.8,7.052]
[1719598294144,15.8383,141.86,141.78,7.0527]
[1719598294366,15.8383,141.86,141.76,7.0541]
[1719598294566,15.8383,141.86,141.77,30.0]
[1719598294739,15.8383,141.86,141.77,47.6336]
[1719598294946,15.8383,141.86,141.79,7.0525]
[1719598295146,15.8383,141.86,141.8,7.0521]
[1719598295556,15.8383,141.86,141.79,24.6834]
[1719598296262,15.8383,141.86,141.8,7.052]
[1719598297146,15.8383,141.86,141.79,24.6835]